[Event "Titled Tuesday Blitz August 1 Early 2023"]
[White "Morefield, Jason"]
[Black "Heinemann, Josefine"]
[WhiteFideId "30920825"]
[BlackFideId "12900460"]
[WhiteElo "2698"]
[BlackElo "2535"]
[Result "0-1"]
[Round "8"]
[TimeControl "180+1"]
[Date "2023.08.01"]
[WhiteClock "0:00:03"]
[BlackClock "0:00:37"]
[Board "69"]

1. e4 {[%clk 0:03:00]}  c5 {[%clk 0:02:56]} 2. Nf3 {[%clk 0:03:01]}  d6 {[%clk 0:02:55]} 3. d4 {[%clk 0:03:01]}  cxd4 {[%clk 0:02:56]} 4. Nxd4 {[%clk 0:03:02]}  Nf6 {[%clk 0:02:53]} 5. Nc3 {[%clk 0:03:02]}  a6 {[%clk 0:02:53]} 6. Be2 {[%clk 0:03:01]}  e6 {[%clk 0:02:53]} 7. f4 {[%clk 0:03:01]}  Nbd7 {[%clk 0:02:51]} 8. Be3 {[%clk 0:02:56]}  b5 {[%clk 0:02:51]} 9. Bf3 {[%clk 0:02:51]}  Bb7 {[%clk 0:02:51]} 10. a3 {[%clk 0:02:45]}  Qc7 {[%clk 0:02:46]} 11. Qe2 {[%clk 0:02:45]}  Be7 {[%clk 0:02:46]} 12. O-O-O {[%clk 0:02:38]}  Rc8 {[%clk 0:02:45]} 13. Kb1 {[%clk 0:02:36]}  Nb6 {[%clk 0:02:43]} 14. Ndxb5 {[%clk 0:01:56]}  axb5 {[%clk 0:02:42]} 15. Nxb5 {[%clk 0:01:57]}  Qd8 {[%clk 0:02:39]} 16. Nxd6+ {[%clk 0:01:30]}  Bxd6 {[%clk 0:02:36]} 17. Qb5+ {[%clk 0:01:31]}  Bc6 {[%clk 0:02:19]} 18. Qxb6 {[%clk 0:01:28]}  Qxb6 {[%clk 0:02:19]} 19. Bxb6 {[%clk 0:01:29]}  Bxa3 {[%clk 0:02:14]} 20. Bd4 {[%clk 0:01:10]}  Be7 {[%clk 0:02:11]} 21. Rhe1 {[%clk 0:01:06]}  O-O {[%clk 0:02:11]} 22. g4 {[%clk 0:01:01]}  Rfd8 {[%clk 0:02:07]} 23. g5 {[%clk 0:00:59]}  Nd7 {[%clk 0:02:06]} 24. b3 {[%clk 0:00:50]}  Nc5 {[%clk 0:02:02]} 25. Kb2 {[%clk 0:00:44]}  f6 {[%clk 0:02:02]} 26. h4 {[%clk 0:00:41]}  Kf7 {[%clk 0:02:02]} 27. gxf6 {[%clk 0:00:26]}  Bxf6 {[%clk 0:01:56]} 28. c3 {[%clk 0:00:22]}  Bxd4 {[%clk 0:01:27]} 29. cxd4 {[%clk 0:00:22]}  Nd7 {[%clk 0:01:28]} 30. d5 {[%clk 0:00:19]}  exd5 {[%clk 0:01:28]} 31. exd5 {[%clk 0:00:20]}  Bb5 {[%clk 0:01:27]} 32. Bg4 {[%clk 0:00:18]}  Rb8 {[%clk 0:01:23]} 33. d6 {[%clk 0:00:14]}  Nf6 {[%clk 0:01:09]} 34. Be6+ {[%clk 0:00:13]}  Kf8 {[%clk 0:01:10]} 35. Re5 {[%clk 0:00:12]}  Bd7 {[%clk 0:01:09]} 36. Bc4 {[%clk 0:00:11]}  Rb6 {[%clk 0:01:05]} 37. Re7 {[%clk 0:00:10]}  Be8 {[%clk 0:01:05]} 38. Re6 {[%clk 0:00:05]}  Bf7 {[%clk 0:01:05]} 39. f5 {[%clk 0:00:01]}  Bxe6 {[%clk 0:01:04]} 40. fxe6 {[%clk 0:00:02]}  Rbxd6 {[%clk 0:01:04]} 41. Ra1 {[%clk 0:00:01]}  Nd5 {[%clk 0:00:55]} 42. Rf1+ {[%clk 0:00:01]}  Ke7 {[%clk 0:00:49]} 43. Rf7+ {[%clk 0:00:01]}  Kxe6 {[%clk 0:00:49]} 44. Rxg7 {[%clk 0:00:02]}  R8d7 {[%clk 0:00:50]} 45. Rg8 {[%clk 0:00:02]}  Ke5 {[%clk 0:00:49]} 46. Rg5+ {[%clk 0:00:03]}  Kd4 {[%clk 0:00:49]} 47. Rg4+ {[%clk 0:00:03]}  Ke3 {[%clk 0:00:48]} 48. Rg3+ {[%clk 0:00:03]}  Kf4 {[%clk 0:00:48]} 49. Rg5 {[%clk 0:00:03]}  Ne3 {[%clk 0:00:48]} 50. Bg8 {[%clk 0:00:03]}  Rd2+ {[%clk 0:00:47]} 51. Kc3 {[%clk 0:00:04]}  Rc2+ {[%clk 0:00:46]} 52. Kb4 {[%clk 0:00:04]}  Rb7+ {[%clk 0:00:46]} 53. Ka3 {[%clk 0:00:04]}  Rc8 {[%clk 0:00:40]} 54. Ra5 {[%clk 0:00:03]}  Rxg8 {[%clk 0:00:37]} 0-1


[Site "https://www.chess.com"]

[Event "Titled Tuesday Blitz August 1 Early 2023"]
[White "only_strong_moves"]
[Black "Sreyas Payyappat"]
[BlackFideId "46674969"]
[WhiteElo "2695"]
[BlackElo "2530"]
[Result "1-0"]
[Round "8"]
[TimeControl "180+1"]
[Date "2023.08.01"]
[WhiteClock "0:00:38"]
[BlackClock "0:00:21"]
[Board "70"]

1. d4 {[%clk 0:03:00]}  Nf6 {[%clk 0:02:59]} 2. c4 {[%clk 0:03:01]}  c5 {[%clk 0:02:59]} 3. d5 {[%clk 0:03:01]}  e6 {[%clk 0:03:00]} 4. Nc3 {[%clk 0:03:01]}  exd5 {[%clk 0:03:01]} 5. cxd5 {[%clk 0:03:02]}  d6 {[%clk 0:03:00]} 6. Nf3 {[%clk 0:03:02]}  g6 {[%clk 0:03:00]} 7. Nd2 {[%clk 0:03:03]}  Bg7 {[%clk 0:02:59]} 8. e4 {[%clk 0:03:03]}  O-O {[%clk 0:02:59]} 9. Be2 {[%clk 0:03:04]}  Re8 {[%clk 0:02:56]} 10. O-O {[%clk 0:03:04]}  Nbd7 {[%clk 0:02:54]} 11. Qc2 {[%clk 0:03:02]}  a6 {[%clk 0:02:52]} 12. a4 {[%clk 0:03:03]}  Rb8 {[%clk 0:02:50]} 13. a5 {[%clk 0:03:02]}  b5 {[%clk 0:02:44]} 14. axb6 {[%clk 0:03:03]}  Qxb6 {[%clk 0:02:43]} 15. Nc4 {[%clk 0:03:02]}  Qc7 {[%clk 0:02:40]} 16. Bf4 {[%clk 0:02:57]}  Ne5 {[%clk 0:02:36]} 17. Bxe5 {[%clk 0:02:31]}  dxe5 {[%clk 0:02:37]} 18. Rfd1 {[%clk 0:02:31]}  Nd7 {[%clk 0:02:28]} 19. d6 {[%clk 0:02:27]}  Qc6 {[%clk 0:02:26]} 20. Nd5 {[%clk 0:02:25]}  Kh8 {[%clk 0:02:17]} 21. Nc7 {[%clk 0:02:00]}  Rd8 {[%clk 0:02:10]} 22. Na5 {[%clk 0:01:59]}  Qb6 {[%clk 0:02:05]} 23. Qc4 {[%clk 0:01:37]}  Qxb2 {[%clk 0:01:55]} 24. Nc6 {[%clk 0:01:30]}  Nb6 {[%clk 0:01:37]} 25. Qa2 {[%clk 0:01:30]}  Na4 {[%clk 0:01:04]} 26. Qxa4 {[%clk 0:01:15]}  Bd7 {[%clk 0:00:47]} 27. Bg4 {[%clk 0:00:42]}  Bxg4 {[%clk 0:00:25]} 28. Nxd8 {[%clk 0:00:41]}  Bxd1 {[%clk 0:00:21]} 29. Qe8+ {[%clk 0:00:38]} 1-0


[Site "https://www.chess.com"]

[Event "Titled Tuesday Blitz August 1 Early 2023"]
[White "Jaskolka, Tomasz"]
[Black "Schnaider, Ilan"]
[WhiteFideId "1170791"]
[BlackFideId "169013"]
[WhiteElo "2528"]
[BlackElo "2692"]
[Result "0-1"]
[Round "8"]
[TimeControl "180+1"]
[Date "2023.08.01"]
[WhiteClock "0:00:02"]
[BlackClock "0:00:15"]
[Board "71"]

1. e4 {[%clk 0:03:00]}  c5 {[%clk 0:02:59]} 2. Nf3 {[%clk 0:03:00]}  d6 {[%clk 0:02:59]} 3. Bb5+ {[%clk 0:02:57]}  Bd7 {[%clk 0:02:57]} 4. a4 {[%clk 0:02:58]}  Nf6 {[%clk 0:02:50]} 5. Nc3 {[%clk 0:02:57]}  g6 {[%clk 0:02:49]} 6. O-O {[%clk 0:02:55]}  Bg7 {[%clk 0:02:49]} 7. Re1 {[%clk 0:02:56]}  O-O {[%clk 0:02:49]} 8. e5 {[%clk 0:02:46]}  dxe5 {[%clk 0:02:46]} 9. Nxe5 {[%clk 0:02:47]}  Bf5 {[%clk 0:02:40]} 10. d3 {[%clk 0:02:43]}  Nbd7 {[%clk 0:02:34]} 11. Nxd7 {[%clk 0:02:11]}  Nxd7 {[%clk 0:02:35]} 12. Bg5 {[%clk 0:02:09]}  Nf6 {[%clk 0:02:28]} 13. Qe2 {[%clk 0:02:07]}  h6 {[%clk 0:02:25]} 14. Bd2 {[%clk 0:02:03]}  Be6 {[%clk 0:02:06]} 15. Rad1 {[%clk 0:01:48]}  Bg4 {[%clk 0:01:35]} 16. f3 {[%clk 0:01:39]}  Be6 {[%clk 0:01:36]} 17. Be3 {[%clk 0:01:37]}  Nd5 {[%clk 0:01:34]} 18. Nxd5 {[%clk 0:01:36]}  Qxd5 {[%clk 0:01:34]} 19. Bc4 {[%clk 0:01:32]}  Qc6 {[%clk 0:01:34]} 20. Bxe6 {[%clk 0:01:32]}  Qxe6 {[%clk 0:01:35]} 21. Bxc5 {[%clk 0:01:28]}  Qc6 {[%clk 0:01:35]} 22. Bf2 {[%clk 0:01:01]}  Qxa4 {[%clk 0:01:33]} 23. Qxe7 {[%clk 0:00:57]}  Qxc2 {[%clk 0:01:32]} 24. Qxb7 {[%clk 0:00:55]}  Bxb2 {[%clk 0:01:30]} 25. Bxa7 {[%clk 0:00:44]}  Bc3 {[%clk 0:01:30]} 26. Rf1 {[%clk 0:00:38]}  Rfe8 {[%clk 0:01:29]} 27. Bf2 {[%clk 0:00:36]}  Ra2 {[%clk 0:01:24]} 28. Qc6 {[%clk 0:00:26]}  Re2 {[%clk 0:00:25]} 29. Rc1 {[%clk 0:00:26]}  Qxc1 {[%clk 0:00:17]} 30. Rxc1 {[%clk 0:00:26]}  Rxf2 {[%clk 0:00:18]} 31. Qc8+ {[%clk 0:00:13]}  Kh7 {[%clk 0:00:16]} 32. Qxc3 {[%clk 0:00:10]}  Rxg2+ {[%clk 0:00:17]} 33. Kf1 {[%clk 0:00:10]}  Rgf2+ {[%clk 0:00:17]} 34. Ke1 {[%clk 0:00:11]}  Rxh2 {[%clk 0:00:17]} 35. Rc2 {[%clk 0:00:02]}  Raxc2 {[%clk 0:00:15]} 36. Qf6 {[%clk 0:00:02]}  Rh1# {[%clk 0:00:15]} 0-1


[Site "https://www.chess.com"]

[Event "Titled Tuesday Blitz August 1 Early 2023"]
[White "Goltseva, Ekaterina"]
[Black "Alamzhi21"]
[WhiteFideId "24173770"]
[WhiteElo "2527"]
[BlackElo "2685"]
[Result "1-0"]
[Round "8"]
[TimeControl "180+1"]
[Date "2023.08.01"]
[WhiteClock "0:00:07"]
[BlackClock "0:00:16"]
[Board "72"]

1. d4 {[%clk 0:03:00]}  Nf6 {[%clk 0:02:59]} 2. c4 {[%clk 0:03:01]}  c5 {[%clk 0:02:59]} 3. d5 {[%clk 0:03:01]}  e6 {[%clk 0:03:00]} 4. Nc3 {[%clk 0:03:01]}  exd5 {[%clk 0:03:01]} 5. cxd5 {[%clk 0:03:02]}  d6 {[%clk 0:03:02]} 6. e4 {[%clk 0:03:02]}  g6 {[%clk 0:03:03]} 7. Nge2 {[%clk 0:03:03]}  Bg7 {[%clk 0:03:03]} 8. Ng3 {[%clk 0:03:03]}  O-O {[%clk 0:03:04]} 9. Be2 {[%clk 0:03:04]}  h5 {[%clk 0:03:04]} 10. Bg5 {[%clk 0:03:03]}  Re8 {[%clk 0:03:04]} 11. O-O {[%clk 0:03:01]}  a6 {[%clk 0:03:05]} 12. a4 {[%clk 0:03:01]}  Nbd7 {[%clk 0:03:05]} 13. Qd2 {[%clk 0:02:59]}  Qc7 {[%clk 0:03:06]} 14. f4 {[%clk 0:02:48]}  Nh7 {[%clk 0:03:05]} 15. Bh4 {[%clk 0:02:48]}  Bf6 {[%clk 0:02:36]} 16. Bxf6 {[%clk 0:02:42]}  Nhxf6 {[%clk 0:02:36]} 17. e5 {[%clk 0:02:32]}  dxe5 {[%clk 0:02:34]} 18. f5 {[%clk 0:02:32]}  Kh7 {[%clk 0:01:47]} 19. Nce4 {[%clk 0:01:42]}  Qd8 {[%clk 0:01:37]} 20. Nd6 {[%clk 0:01:18]}  Rf8 {[%clk 0:01:33]} 21. Bd3 {[%clk 0:00:54]}  e4 {[%clk 0:01:28]} 22. Ngxe4 {[%clk 0:00:50]}  Nxe4 {[%clk 0:01:27]} 23. Nxe4 {[%clk 0:00:28]}  Ne5 {[%clk 0:01:18]} 24. fxg6+ {[%clk 0:00:26]}  fxg6 {[%clk 0:01:18]} 25. Rxf8 {[%clk 0:00:22]}  Qxf8 {[%clk 0:01:19]} 26. Rf1 {[%clk 0:00:21]}  Qg7 {[%clk 0:01:11]} 27. Nf6+ {[%clk 0:00:19]}  Kh8 {[%clk 0:01:10]} 28. Ne8 {[%clk 0:00:16]}  Qe7 {[%clk 0:00:45]} 29. Qh6+ {[%clk 0:00:15]}  Kg8 {[%clk 0:00:46]} 30. Nf6+ {[%clk 0:00:09]}  Kf7 {[%clk 0:00:46]} 31. Qh7+ {[%clk 0:00:04]}  Kf8 {[%clk 0:00:40]} 32. Ng8+ {[%clk 0:00:05]}  Qf7 {[%clk 0:00:29]} 33. Rxf7+ {[%clk 0:00:04]}  Nxf7 {[%clk 0:00:30]} 34. Bxg6 {[%clk 0:00:04]}  Ne5 {[%clk 0:00:29]} 35. Nf6 {[%clk 0:00:03]}  Bg4 {[%clk 0:00:24]} 36. Qg8+ {[%clk 0:00:03]}  Ke7 {[%clk 0:00:24]} 37. Qg7+ {[%clk 0:00:04]}  Kd6 {[%clk 0:00:24]} 38. Nxg4 {[%clk 0:00:04]}  Nxg4 {[%clk 0:00:23]} 39. Bxh5 {[%clk 0:00:05]}  Ne3 {[%clk 0:00:21]} 40. Qh6+ {[%clk 0:00:05]}  Kxd5 {[%clk 0:00:21]} 41. Qxe3 {[%clk 0:00:05]}  Re8 {[%clk 0:00:21]} 42. Bf3+ {[%clk 0:00:06]}  Kd6 {[%clk 0:00:16]} 43. Qxe8 {[%clk 0:00:07]} 1-0


[Site "https://www.chess.com"]

[Event "Titled Tuesday Blitz August 1 Early 2023"]
[White "Santos Flores, Alberto"]
[Black "Itgelt, Khuyagtsogt"]
[WhiteFideId "3601234"]
[BlackFideId "4902912"]
[WhiteElo "2519"]
[BlackElo "2656"]
[Result "1-0"]
[Round "8"]
[TimeControl "180+1"]
[Date "2023.08.01"]
[WhiteClock "0:00:20"]
[BlackClock "0:00:00"]
[Board "73"]

1. e4 {[%clk 0:03:00]}  e6 {[%clk 0:02:46]} 2. d4 {[%clk 0:02:56]}  d5 {[%clk 0:02:45]} 3. Nc3 {[%clk 0:02:57]}  Bb4 {[%clk 0:02:45]} 4. e5 {[%clk 0:02:57]}  c5 {[%clk 0:02:44]} 5. a3 {[%clk 0:02:58]}  Bxc3+ {[%clk 0:02:45]} 6. bxc3 {[%clk 0:02:58]}  Qa5 {[%clk 0:02:46]} 7. Bd2 {[%clk 0:02:54]}  Qa4 {[%clk 0:02:45]} 8. Nf3 {[%clk 0:02:49]}  b6 {[%clk 0:02:43]} 9. Qb1 {[%clk 0:02:38]}  Ba6 {[%clk 0:02:37]} 10. Qb3 {[%clk 0:02:37]}  Qxb3 {[%clk 0:02:27]} 11. cxb3 {[%clk 0:02:38]}  Bxf1 {[%clk 0:02:24]} 12. Kxf1 {[%clk 0:02:39]}  Ne7 {[%clk 0:02:23]} 13. Ke2 {[%clk 0:02:38]}  Nec6 {[%clk 0:02:17]} 14. b4 {[%clk 0:02:31]}  Nd7 {[%clk 0:01:52]} 15. a4 {[%clk 0:02:20]}  c4 {[%clk 0:01:35]} 16. Bc1 {[%clk 0:02:14]}  O-O-O {[%clk 0:01:26]} 17. Ba3 {[%clk 0:02:09]}  f6 {[%clk 0:01:25]} 18. b5 {[%clk 0:01:56]}  Na5 {[%clk 0:01:20]} 19. Bd6 {[%clk 0:01:54]}  Nb7 {[%clk 0:01:10]} 20. Bb4 {[%clk 0:01:47]}  fxe5 {[%clk 0:00:55]} 21. Nxe5 {[%clk 0:01:47]}  Nxe5 {[%clk 0:00:55]} 22. dxe5 {[%clk 0:01:47]}  Na5 {[%clk 0:00:46]} 23. Bxa5 {[%clk 0:01:40]}  bxa5 {[%clk 0:00:46]} 24. Ke3 {[%clk 0:01:40]}  g5 {[%clk 0:00:37]} 25. h4 {[%clk 0:01:39]}  g4 {[%clk 0:00:34]} 26. f4 {[%clk 0:01:32]}  gxf3 {[%clk 0:00:30]} 27. gxf3 {[%clk 0:01:33]}  Rhg8 {[%clk 0:00:26]} 28. Rag1 {[%clk 0:01:32]}  Rdf8 {[%clk 0:00:19]} 29. f4 {[%clk 0:01:07]}  Kc7 {[%clk 0:00:14]} 30. Rg5 {[%clk 0:01:02]}  h6 {[%clk 0:00:11]} 31. Rgg1 {[%clk 0:01:00]}  Kb6 {[%clk 0:00:11]} 32. h5 {[%clk 0:01:00]}  Kc5 {[%clk 0:00:09]} 33. Rg6 {[%clk 0:01:00]}  Re8 {[%clk 0:00:04]} 34. Rhg1 {[%clk 0:00:59]}  Rxg6 {[%clk 0:00:03]} 35. Rxg6 {[%clk 0:00:57]}  d4+ {[%clk 0:00:01]} 36. cxd4+ {[%clk 0:00:57]}  Kb4 {[%clk 0:00:02]} 37. d5 {[%clk 0:00:20]}  exd5 {[%clk 0:00:02]} 38. Kd4 {[%clk 0:00:20]}  Rf8 {[%clk 0:00:00]} 39. Rf6 {[%clk 0:00:20]} 1-0


[Site "https://www.chess.com"]

[Event "Titled Tuesday Blitz August 1 Early 2023"]
[White "Molenda, Marcin"]
[Black "Arias, Juan Cruz"]
[WhiteFideId "1173065"]
[BlackFideId "118540"]
[WhiteElo "2509"]
[BlackElo "2640"]
[Result "1-0"]
[Round "8"]
[TimeControl "180+1"]
[Date "2023.08.01"]
[WhiteClock "0:00:04"]
[BlackClock "0:00:00"]
[Board "76"]

1. e4 {[%clk 0:02:58]}  e6 {[%clk 0:02:58]} 2. d3 {[%clk 0:02:47]}  d5 {[%clk 0:02:58]} 3. Nd2 {[%clk 0:02:48]}  Nf6 {[%clk 0:02:58]} 4. g3 {[%clk 0:02:48]}  Bc5 {[%clk 0:02:57]} 5. Bg2 {[%clk 0:02:47]}  dxe4 {[%clk 0:02:57]} 6. Nxe4 {[%clk 0:02:43]}  Nxe4 {[%clk 0:02:57]} 7. Bxe4 {[%clk 0:02:44]}  e5 {[%clk 0:02:55]} 8. Bg2 {[%clk 0:02:38]}  O-O {[%clk 0:02:54]} 9. Ne2 {[%clk 0:02:28]}  Nc6 {[%clk 0:02:46]} 10. Nc3 {[%clk 0:02:27]}  Nd4 {[%clk 0:02:30]} 11. O-O {[%clk 0:02:27]}  c6 {[%clk 0:02:27]} 12. Ne4 {[%clk 0:02:27]}  Bb6 {[%clk 0:02:21]} 13. c3 {[%clk 0:02:25]}  Ne6 {[%clk 0:02:20]} 14. Qe2 {[%clk 0:02:09]}  Re8 {[%clk 0:02:03]} 15. Be3 {[%clk 0:02:07]}  Nc7 {[%clk 0:01:20]} 16. Bxb6 {[%clk 0:02:03]}  axb6 {[%clk 0:01:21]} 17. a3 {[%clk 0:02:02]}  Bf5 {[%clk 0:01:21]} 18. Rad1 {[%clk 0:02:01]}  Qe7 {[%clk 0:01:19]} 19. Nd2 {[%clk 0:01:57]}  Rad8 {[%clk 0:01:18]} 20. Nc4 {[%clk 0:01:58]}  b5 {[%clk 0:01:16]} 21. Ne3 {[%clk 0:01:57]}  Bg6 {[%clk 0:01:16]} 22. Rd2 {[%clk 0:01:48]}  Ne6 {[%clk 0:01:16]} 23. Rfd1 {[%clk 0:01:48]}  Nf4 {[%clk 0:01:10]} 24. Qf1 {[%clk 0:01:26]}  Nxd3 {[%clk 0:01:07]} 25. Rxd3 {[%clk 0:01:22]}  Bxd3 {[%clk 0:01:07]} 26. Rxd3 {[%clk 0:01:22]}  Rxd3 {[%clk 0:01:03]} 27. Qxd3 {[%clk 0:01:23]}  Rd8 {[%clk 0:01:04]} 28. Qe2 {[%clk 0:01:03]}  Qc5 {[%clk 0:01:04]} 29. h4 {[%clk 0:01:03]}  Qd6 {[%clk 0:01:00]} 30. Kh2 {[%clk 0:00:59]}  Qd2 {[%clk 0:00:57]} 31. Qf3 {[%clk 0:00:51]}  Qxb2 {[%clk 0:00:53]} 32. Ng4 {[%clk 0:00:51]}  Qxa3 {[%clk 0:00:40]} 33. Nxe5 {[%clk 0:00:50]}  Qe7 {[%clk 0:00:40]} 34. Qf4 {[%clk 0:00:20]}  Qf6 {[%clk 0:00:34]} 35. Qe3 {[%clk 0:00:20]}  Re8 {[%clk 0:00:32]} 36. Ng4 {[%clk 0:00:19]}  Qe6 {[%clk 0:00:23]} 37. Qf4 {[%clk 0:00:19]}  Qc4 {[%clk 0:00:20]} 38. Qg5 {[%clk 0:00:17]}  Qxc3 {[%clk 0:00:21]} 39. h5 {[%clk 0:00:11]}  Kf8 {[%clk 0:00:19]} 40. h6 {[%clk 0:00:12]}  gxh6 {[%clk 0:00:19]} 41. Qxh6+ {[%clk 0:00:11]}  Qg7 {[%clk 0:00:19]} 42. Qf4 {[%clk 0:00:11]}  Qg6 {[%clk 0:00:17]} 43. Ne3 {[%clk 0:00:02]}  Re6 {[%clk 0:00:16]} 44. Nf5 {[%clk 0:00:03]}  h5 {[%clk 0:00:10]} 45. Qb8+ {[%clk 0:00:02]}  Re8 {[%clk 0:00:10]} 46. Qf4 {[%clk 0:00:03]}  Kg8 {[%clk 0:00:10]} 47. Be4 {[%clk 0:00:03]}  Rxe4 {[%clk 0:00:05]} 48. Qxe4 {[%clk 0:00:03]}  Kh8 {[%clk 0:00:05]} 49. Qe5+ {[%clk 0:00:04]}  Kh7 {[%clk 0:00:06]} 50. Qf4 {[%clk 0:00:03]}  Qf6 {[%clk 0:00:06]} 51. Kg2 {[%clk 0:00:02]}  b4 {[%clk 0:00:05]} 52. Qe4 {[%clk 0:00:02]}  Qg6 {[%clk 0:00:04]} 53. Qe5 {[%clk 0:00:02]}  b3 {[%clk 0:00:04]} 54. Ne7 {[%clk 0:00:02]}  Qe6 {[%clk 0:00:03]} 55. Qxh5+ {[%clk 0:00:02]}  Kg7 {[%clk 0:00:04]} 56. Qg5+ {[%clk 0:00:02]}  Kf8 {[%clk 0:00:04]} 57. Nf5 {[%clk 0:00:03]}  Qe5 {[%clk 0:00:03]} 58. Qd8+ {[%clk 0:00:03]}  Qe8 {[%clk 0:00:04]} 59. Qd6+ {[%clk 0:00:03]}  Kg8 {[%clk 0:00:04]} 60. Qf6 {[%clk 0:00:03]}  Qe4+ {[%clk 0:00:02]} 61. Kh3 {[%clk 0:00:03]}  Qh1+ {[%clk 0:00:00]} 62. Kg4 {[%clk 0:00:04]} 1-0


[Site "https://www.chess.com"]

[Event "Titled Tuesday Blitz August 1 Early 2023"]
[White "Weishaeutel, Moritz"]
[Black "Dushyant Sharma"]
[WhiteFideId "12967300"]
[BlackFideId "25065130"]
[WhiteElo "2637"]
[BlackElo "2507"]
[Result "1-0"]
[Round "8"]
[TimeControl "180+1"]
[Date "2023.08.01"]
[WhiteClock "0:00:26"]
[BlackClock "0:00:11"]
[Board "77"]

1. e4 {[%clk 0:03:00]}  d5 {[%clk 0:02:55]} 2. exd5 {[%clk 0:02:59]}  Nf6 {[%clk 0:02:53]} 3. Nf3 {[%clk 0:02:57]}  Qxd5 {[%clk 0:02:50]} 4. Nc3 {[%clk 0:02:55]}  Qd8 {[%clk 0:02:49]} 5. d4 {[%clk 0:02:51]}  Bg4 {[%clk 0:02:50]} 6. h3 {[%clk 0:02:50]}  Bh5 {[%clk 0:02:07]} 7. g4 {[%clk 0:02:47]}  Bg6 {[%clk 0:02:08]} 8. Ne5 {[%clk 0:02:48]}  Nbd7 {[%clk 0:02:06]} 9. h4 {[%clk 0:02:28]}  Nxe5 {[%clk 0:01:59]} 10. h5 {[%clk 0:01:35]}  Bxc2 {[%clk 0:01:44]} 11. Qxc2 {[%clk 0:01:34]}  Qxd4 {[%clk 0:01:44]} 12. Bg2 {[%clk 0:01:21]}  O-O-O {[%clk 0:01:33]} 13. Be3 {[%clk 0:01:21]}  Qxg4 {[%clk 0:01:30]} 14. Bh3 {[%clk 0:01:21]}  Nf3+ {[%clk 0:01:14]} 15. Kf1 {[%clk 0:01:18]}  e6 {[%clk 0:01:12]} 16. Bxg4 {[%clk 0:01:18]}  Nxg4 {[%clk 0:01:13]} 17. Qe4 {[%clk 0:00:56]}  Nxe3+ {[%clk 0:00:53]} 18. Qxe3 {[%clk 0:00:54]}  Nd4 {[%clk 0:00:53]} 19. Rd1 {[%clk 0:00:51]}  Bc5 {[%clk 0:00:53]} 20. Na4 {[%clk 0:00:46]}  b6 {[%clk 0:00:32]} 21. Nxc5 {[%clk 0:00:45]}  bxc5 {[%clk 0:00:32]} 22. Rc1 {[%clk 0:00:45]}  Rd5 {[%clk 0:00:31]} 23. Rxc5 {[%clk 0:00:42]}  Rxc5 {[%clk 0:00:26]} 24. Qxd4 {[%clk 0:00:42]}  Rd5 {[%clk 0:00:25]} 25. Qxg7 {[%clk 0:00:40]}  Rhd8 {[%clk 0:00:20]} 26. Qxf7 {[%clk 0:00:32]}  Kb7 {[%clk 0:00:14]} 27. Rh3 {[%clk 0:00:30]}  Rg5 {[%clk 0:00:12]} 28. Rb3+ {[%clk 0:00:29]}  Ka8 {[%clk 0:00:11]} 29. Qxc7 {[%clk 0:00:26]}  Rd1+ {[%clk 0:00:11]} 30. Ke2 {[%clk 0:00:26]} 1-0


[Site "https://www.chess.com"]

[Event "Titled Tuesday Blitz August 1 Early 2023"]
[White "Przybylski, Wojciech"]
[Black "Ljukin, Sergei"]
[WhiteFideId "1117599"]
[BlackFideId "14102200"]
[WhiteElo "2630"]
[BlackElo "2505"]
[Result "1-0"]
[Round "8"]
[TimeControl "180+1"]
[Date "2023.08.01"]
[WhiteClock "0:01:16"]
[BlackClock "0:00:40"]
[Board "78"]

1. d4 {[%clk 0:03:00]}  d5 {[%clk 0:02:42]} 2. Nf3 {[%clk 0:02:58]}  Nf6 {[%clk 0:02:42]} 3. c4 {[%clk 0:02:57]}  c6 {[%clk 0:02:42]} 4. Nc3 {[%clk 0:02:56]}  dxc4 {[%clk 0:02:41]} 5. e4 {[%clk 0:02:55]}  b5 {[%clk 0:02:41]} 6. e5 {[%clk 0:02:53]}  Nd5 {[%clk 0:02:41]} 7. Be2 {[%clk 0:02:52]}  e6 {[%clk 0:02:32]} 8. O-O {[%clk 0:02:52]}  Bb7 {[%clk 0:02:32]} 9. a4 {[%clk 0:02:50]}  a6 {[%clk 0:02:32]} 10. Ng5 {[%clk 0:02:47]}  Be7 {[%clk 0:02:27]} 11. Nge4 {[%clk 0:02:41]}  O-O {[%clk 0:02:26]} 12. Re1 {[%clk 0:02:28]}  Nd7 {[%clk 0:02:26]} 13. Bh5 {[%clk 0:02:26]}  f5 {[%clk 0:02:15]} 14. Nd6 {[%clk 0:02:19]}  Bxd6 {[%clk 0:02:12]} 15. exd6 {[%clk 0:02:19]}  N7f6 {[%clk 0:02:12]} 16. Rxe6 {[%clk 0:02:15]}  Bc8 {[%clk 0:01:58]} 17. Re5 {[%clk 0:02:08]}  b4 {[%clk 0:01:31]} 18. Nxd5 {[%clk 0:02:02]}  cxd5 {[%clk 0:01:27]} 19. Bf3 {[%clk 0:01:56]}  Qxd6 {[%clk 0:01:22]} 20. Bf4 {[%clk 0:01:56]}  Qd8 {[%clk 0:01:20]} 21. a5 {[%clk 0:01:52]}  Ne4 {[%clk 0:01:12]} 22. h3 {[%clk 0:01:46]}  Bb7 {[%clk 0:01:06]} 23. Qe1 {[%clk 0:01:36]}  c3 {[%clk 0:01:03]} 24. bxc3 {[%clk 0:01:34]}  bxc3 {[%clk 0:01:03]} 25. Rb1 {[%clk 0:01:31]}  Qc8 {[%clk 0:00:57]} 26. Re7 {[%clk 0:01:24]}  Rf7 {[%clk 0:00:51]} 27. Rbxb7 {[%clk 0:01:23]}  Qxb7 {[%clk 0:00:49]} 28. Rxb7 {[%clk 0:01:22]}  Rxb7 {[%clk 0:00:50]} 29. Bxe4 {[%clk 0:01:22]}  fxe4 {[%clk 0:00:43]} 30. Qxc3 {[%clk 0:01:22]}  Rb5 {[%clk 0:00:43]} 31. Qc7 {[%clk 0:01:17]}  Rf8 {[%clk 0:00:43]} 32. Bd6 {[%clk 0:01:16]}  Rf7 {[%clk 0:00:40]} 33. Qc8+ {[%clk 0:01:16]} 1-0


[Site "https://www.chess.com"]

[Event "Titled Tuesday Blitz August 1 Early 2023"]
[White "Pham, Le Thao Nguyen"]
[Black "KrokerGuy"]
[WhiteFideId "12401226"]
[WhiteElo "2612"]
[BlackElo "2498"]
[Result "1-0"]
[Round "8"]
[TimeControl "180+1"]
[Date "2023.08.01"]
[WhiteClock "0:00:11"]
[BlackClock "0:00:00"]
[Board "79"]

1. d4 {[%clk 0:02:56]}  d5 {[%clk 0:03:00]} 2. c4 {[%clk 0:02:53]}  e6 {[%clk 0:03:00]} 3. Nf3 {[%clk 0:02:52]}  Nf6 {[%clk 0:03:00]} 4. Nc3 {[%clk 0:02:53]}  Bb4 {[%clk 0:03:00]} 5. Bg5 {[%clk 0:02:53]}  h6 {[%clk 0:03:01]} 6. Bxf6 {[%clk 0:02:43]}  Qxf6 {[%clk 0:03:02]} 7. Qa4+ {[%clk 0:02:42]}  Nc6 {[%clk 0:03:01]} 8. e3 {[%clk 0:02:43]}  O-O {[%clk 0:02:59]} 9. a3 {[%clk 0:02:41]}  Bxc3+ {[%clk 0:02:52]} 10. bxc3 {[%clk 0:02:42]}  dxc4 {[%clk 0:02:47]} 11. Bxc4 {[%clk 0:02:40]}  Bd7 {[%clk 0:02:36]} 12. Qc2 {[%clk 0:02:29]}  Na5 {[%clk 0:02:35]} 13. Be2 {[%clk 0:02:25]}  c5 {[%clk 0:02:31]} 14. O-O {[%clk 0:02:25]}  b6 {[%clk 0:02:26]} 15. Rfd1 {[%clk 0:02:17]}  Rfd8 {[%clk 0:02:21]} 16. Ne5 {[%clk 0:02:15]}  Rac8 {[%clk 0:02:14]} 17. Ba6 {[%clk 0:01:47]}  Rc7 {[%clk 0:02:09]} 18. Nxd7 {[%clk 0:01:15]}  Rdxd7 {[%clk 0:02:10]} 19. Qb2 {[%clk 0:01:12]}  e5 {[%clk 0:01:37]} 20. Bb5 {[%clk 0:00:58]}  Rd6 {[%clk 0:01:29]} 21. d5 {[%clk 0:00:50]}  e4 {[%clk 0:01:25]} 22. Qc2 {[%clk 0:00:47]}  c4 {[%clk 0:01:11]} 23. Qxe4 {[%clk 0:00:44]}  Qxc3 {[%clk 0:01:04]} 24. Rac1 {[%clk 0:00:40]}  Qxa3 {[%clk 0:01:00]} 25. Bxc4 {[%clk 0:00:34]}  Qa4 {[%clk 0:00:16]} 26. Bd3 {[%clk 0:00:31]}  Rxc1 {[%clk 0:00:04]} 27. Qh7+ {[%clk 0:00:22]}  Kf8 {[%clk 0:00:04]} 28. Rxc1 {[%clk 0:00:23]}  Rxd5 {[%clk 0:00:01]} 29. h3 {[%clk 0:00:21]}  Qb4 {[%clk 0:00:01]} 30. Bf5 {[%clk 0:00:13]}  Rd8 {[%clk 0:00:01]} 31. Qh8+ {[%clk 0:00:10]}  Ke7 {[%clk 0:00:00]} 32. Rc7+ {[%clk 0:00:11]} 1-0


[Site "https://www.chess.com"]